bitfinex/quotes_ETHUSD_20250914
["timestamp","ask_amount","ask_price","bid_price","bid_amount"]
[1757849050224,0.1072,4647.5,4647.4,0.8789]
[1757849050413,3.7112,4647.5,4647.4,0.8789]
[1757849050805,3.7112,4647.5,4647.4,1.3157]
[1757849052256,3.7112,4647.5,4647.4,0.08]
[1757849052257,9.15398869,4647.5,4647.4,0.08]
[1757849053125,8.75018869,4647.5,4647.4,0.08]
[1757849053326,8.7501915,4647.5,4647.4,0.08]
[1757849054764,5.23231255,4647.5,4647.4,0.08]
[1757849055061,7.56251548,4647.5,4647.4,0.08]
[1757849055220,7.04189443,4647.5,4647.4,0.08]
[1757849055716,6.73109443,4647.5,4647.4,0.3941]
[1757849055911,6.73109443,4647.5,4647.4,0.08]
[1757849056158,3.12009443,4647.5,4647.4,0.08]
[1757849056416,6.73209443,4647.5,4647.4,0.08]
[1757849057214,3.12009443,4647.5,4647.4,0.3704]
[1757849057416,6.73209443,4647.5,4647.4,0.08]
[1757849057717,7.04739443,4647.5,4647.4,0.08]
[1757849060341,6.73209443,4647.5,4647.4,0.08]
[1757849060673,3.73209443,4647.5,4647.4,0.08]
[1757849062268,3.73212258,4647.5,4647.4,0.08]
[1757849062967,3.73212258,4647.5,4647.4,0.8217]
[1757849063558,7.92831191,4647.5,4647.4,0.08]
[1757849063758,8.98726222,4647.5,4647.4,0.08]
[1757849064976,9.53473639,4647.5,4647.4,0.08]
[1757849065182,9.5346695,4647.5,4647.4,0.08]
[1757849068799,9.53418612,4647.5,4647.4,0.08]
[1757849070360,13.37439886,4647.5,4647.4,0.08]
[1757849072153,14.14157058,4647.5,4647.4,0.08]
[1757849072678,13.64574176,4647.5,4647.4,0.08]
[1757849073184,16.67554686,4647.5,4647.4,0.08]
[1757849073570,15.90874176,4647.5,4647.4,0.08]
[1757849073786,15.63739886,4647.5,4647.4,0.08]
[1757849074086,7.345,4647.4,4647.3,0.001]
[1757849074378,10.34782855,4647.4,4646.9,0.001]
[1757849074580,10.34782855,4647.4,4642.1,0.10693995]
[1757849074581,2.263,4646.8,4642.1,0.10693995]
[1757849074747,2.263,4646.8,4640.8,2.76862204]
[1757849074748,0.57477628,4646.3,4645.1,0.4513]
[1757849074945,0.3153,4645.8,4645.1,0.4513]
[1757849075181,8.5873,4645.8,4645.1,0.4513]
[1757849075479,9.16232258,4645.8,4645.1,0.4513]
[1757849075781,9.16232258,4645.8,4644.7,0.4513]
[1757849076078,9.61362258,4645.8,4644.7,0.4513]
[1757849076578,5.53872258,4645.8,4645.1,0.4513]
[1757849076757,9.71359484,4645.8,4645.1,0.4513]
[1757849077087,11.45849484,4645.8,4645.1,0.4513]
[1757849078178,11.00359484,4645.8,4645.0,0.4458]
[1757849078382,11.00359484,4645.8,4645.4,0.4513]
[1757849078383,10.68829484,4645.8,4645.4,0.4513]
[1757849079351,10.68765315,4645.8,4645.7,0.3104]
[1757849079680,9.39765315,4645.8,4645.7,0.7617]
[1757849080750,1.652,4645.8,4645.7,1.2075]
[1757849080952,5.273,4645.8,4645.7,1.2075]
[1757849081208,8.273,4645.8,4645.7,1.2075]
[1757849082180,5.273,4645.8,4645.7,1.2075]
[1757849084007,12.293,4645.8,4645.7,1.2075]
[1757849092011,12.293,4645.8,4645.7,0.7617]
[1757849092208,12.293,4645.8,4645.7,1.1932]
[1757849093203,12.293,4645.8,4645.7,1.31262]
[1757849094307,12.289,4645.8,4645.7,1.31262]
[1757849095691,12.3962,4645.8,4645.7,1.31262]
[1757849096308,10.7442,4645.8,4645.7,1.31262]
[1757849102643,7.1272,4645.8,4645.7,0.88112]
[1757849102842,3.7192,4645.8,4645.7,1.33562]
[1757849103012,3.612,4645.8,4645.7,2.12762]
[1757849103330,3.612,4645.9,4645.7,2.12762]
[1757849103534,3.612,4646.0,4645.8,1.160162]
[1757849103745,3.612,4646.0,4645.9,1.2555]
[1757849104141,3.7192,4646.1,4645.9,1.2555]
[1757849104346,3.7192,4646.1,4646.0,0.9473]
[1757849104558,3.7192,4646.1,4646.0,1.2555]
[1757849105345,0.1072,4646.1,4646.0,1.4954782]
[1757849105657,0.1072,4646.1,4646.0,1.0409782]
[1757849107326,0.1072,4646.1,4646.0,1.4954782]
[1757849114866,0.1072,4646.1,4646.0,2.2874782]
[1757849117444,1.652,4646.6,4646.0,2.2874782]
[1757849117659,5.3652,4646.6,4646.1,1.47174782]
[1757849117967,5.3652,4646.6,4646.3,0.792]
[1757849118271,5.3652,4646.6,4646.4,0.20118582]
[1757849118471,5.3652,4646.6,4646.5,0.20118582]
[1757849119271,5.6567,4646.6,4646.5,0.20118582]
[1757849119452,6.1145,4646.6,4646.5,0.20118582]
[1757849120672,6.83112747,4646.6,4646.5,0.20118582]
[1757849120873,3.0,4646.5,4645.7,0.02]
[1757849121044,3.12009924,4646.5,4645.8,0.20127747]
[1757849121245,0.8616,4646.4,4645.9,0.20127747]
[1757849121446,0.8616,4646.4,4645.7,0.02]
[1757849121447,4.60163267,4646.3,4646.0,0.20127747]
[1757849121646,0.1072,4646.0,4645.7,0.02]
[1757849121846,3.606,4645.9,4645.7,0.02]
[1757849122048,0.2915,4645.8,4645.7,0.02]
[1757849122675,0.7493,4645.8,4645.7,0.02]
[1757849126666,0.2915,4645.8,4645.7,0.02]
[1757849127187,3.606,4645.9,4645.7,0.02]
[1757849128055,0.2915,4645.8,4645.7,0.02]
[1757849128261,0.7493,4645.8,4645.7,0.02]
[1757849133520,1.18264402,4645.8,4645.7,0.02]
[1757849134112,1.26879772,4645.8,4645.7,0.02]
[1757849134803,1.67259772,4645.8,4645.7,0.02]
[1757849135471,1.26879772,4645.8,4645.7,0.02]
[1757849136904,4.26879772,4645.8,4645.7,0.02]
[1757849137080,6.08262485,4645.8,4645.7,0.02]
[1757849137399,6.28261092,4645.8,4645.7,0.02]
[1757849138299,6.28251453,4645.8,4645.7,0.02]
[1757849142209,6.28211432,4645.8,4645.7,0.02]
[1757849146408,5.87831432,4645.8,4645.7,0.02]
[1757849147207,5.43131432,4645.8,4645.7,0.02]
[1757849148200,12.15981432,4645.8,4645.7,0.02]
[1757849148603,12.45371432,4645.8,4645.7,0.02]
[1757849148804,12.91841432,4645.8,4645.7,0.02]
[1757849150499,12.45371432,4645.8,4645.7,0.02]
[1757849151534,12.15981432,4645.8,4645.7,0.02]
[1757849152186,10.86981432,4645.8,4645.7,0.8147]
[1757849152382,10.86981432,4645.8,4645.7,0.02]
[1757849154619,10.86981432,4645.8,4645.7,0.8174]
[1757849157095,10.87001719,4645.8,4645.7,0.8174]
[1757849157295,10.42587317,4645.8,4645.7,1.2924]
[1757849158024,10.2260485,4645.8,4645.7,1.2924]
[1757849158531,10.2260485,4645.8,4645.7,0.8174]
[1757849159222,10.2260485,4645.8,4645.7,1.2924]
[1757849160230,10.2260485,4645.8,4645.7,0.8174]
[1757849160538,10.2260485,4645.8,4645.7,0.02]
[1757849160539,12.35765335,4645.8,4645.7,0.02]
[1757849160720,12.35773356,4645.8,4645.7,0.02]
[1757849161231,11.91143356,4645.8,4645.7,0.02]
[1757849161536,12.35773356,4645.8,4645.7,0.02]
[1757849162103,12.55779762,4645.8,4645.7,0.02]
[1757849163726,12.11157101,4645.8,4645.7,0.02]
[1757849163923,12.55787101,4645.8,4645.7,0.02]
[1757849166335,12.55799213,4645.8,4645.7,0.02]
[1757849166555,6.82799213,4645.8,4645.7,0.02]
[1757849166704,7.23179213,4645.8,4645.7,0.02]
[1757849166911,6.82799213,4645.8,4645.7,0.02]
[1757849167740,7.28939792,4645.8,4645.7,0.02]
[1757849168242,7.69319792,4645.8,4645.7,0.02]
[1757849170335,10.53297744,4645.8,4645.7,0.02]
[1757849170538,9.95819792,4645.8,4645.7,0.02]
[1757849171122,10.75019792,4645.8,4645.7,0.02]
[1757849172249,7.347,4645.7,4645.5,0.001]
[1757849172410,12.92623358,4645.6,4645.5,0.001]
[1757849172610,14.53983937,4645.6,4645.5,0.001]
[1757849173344,14.53983937,4645.6,4645.2,0.001]
[1757849173345,0.792,4645.3,4645.2,0.001]
[1757849173511,13.03200407,4645.3,4645.2,0.001]
[1757849173718,14.18420407,4645.3,4645.2,0.001]
[1757849174216,10.94162163,4645.3,4645.2,0.001]
[1757849174418,14.54862163,4645.3,4645.2,0.001]
[1757849174827,14.98924374,4645.3,4645.2,0.001]
[1757849175012,14.7345675,4645.3,4645.2,0.001]
[1757849175237,3.082,4644.9,4642.8,0.08]
[1757849175443,16.44023358,4644.8,4642.8,0.08]
[1757849175618,18.27521625,4644.8,4642.8,0.08]
[1757849175816,14.94451998,4644.8,4642.8,0.08]
[1757849176018,18.55351998,4644.8,4642.8,0.08]
[1757849176215,20.10409794,4644.8,4642.8,0.08]
[1757849176449,20.35877418,4644.8,4642.8,0.08]
[1757849176659,1.0,4644.0,4642.8,0.08]
[1757849176817,8.08944527,4642.9,4642.8,0.08]
[1757849177022,3.555,4642.5,4640.8,0.08]
[1757849177218,7.347,4642.3,4640.8,0.08]
[1757849177442,1.29,4641.9,4640.9,0.4598]
[1757849177640,3.0,4641.7,4640.9,0.4598]
[1757849177824,3.0,4641.7,4640.8,0.08]
[1757849177825,0.2986,4641.0,4640.8,0.08]
[1757849178038,8.282,4640.9,4640.8,0.08]
[1757849178351,8.282,4640.9,4640.3,0.2898]
[1757849178352,3.0,4640.8,4640.3,0.2898]
[1757849178648,3.0,4640.6,4640.4,0.449]
[1757849178852,1.653,4640.9,4640.7,0.2886]
[1757849179060,6.632,4640.8,4640.7,0.2886]
[1757849179284,3.0,4640.7,4637.0,3.0]
[1757849179429,3.632,4640.6,4637.2,1.653]
[1757849179629,3.632,4640.6,4638.9,0.449]
[1757849179630,3.0,4640.5,4638.9,0.449]
[1757849179861,4.292,4640.3,4638.9,0.449]
[1757849180085,4.292,4640.1,4638.9,0.449]
[1757849180238,0.2986,4639.0,4638.2,0.449]
[1757849180437,8.3982,4638.9,4638.6,0.449]
[1757849180668,8.3982,4638.9,4638.5,0.449]
[1757849180669,4.7602,4638.9,4638.5,0.449]
[1757849180969,8.3992,4638.9,4638.8,0.8176]
[1757849181164,4.7602,4638.9,4638.8,1.2774]
[1757849181364,4.19421445,4638.9,4638.8,1.35514]
[1757849181550,3.642,4638.9,4638.8,2.14714]
[1757849181957,1.653,4639.5,4638.8,2.14714]
[1757849182159,3.642,4639.4,4638.9,1.7008]
[1757849182471,3.642,4639.4,4639.3,0.2886]
[1757849182672,3.642,4639.4,4639.3,1.9894]
[1757849183039,1.653,4640.2,4639.3,1.9894]
[1757849183239,3.642,4640.1,4639.4,0.9088]
[1757849183467,3.642,4640.1,4640.0,0.2886]
[1757849183965,3.642,4640.1,4640.0,1.1974]
[1757849184165,3.642,4640.1,4640.0,1.31714]
[1757849189972,3.642,4640.1,4640.0,0.57954]
[1757849190172,3.642,4640.1,4640.0,0.2886]
[1757849190703,3.642,4640.1,4640.0,0.7484]
[1757849191072,3.642,4640.1,4640.0,1.1974]
[1757849193096,3.642,4640.1,4640.0,0.7484]
[1757849193602,0.1072,4640.0,4639.6,0.001]
[1757849193806,3.0,4639.8,4639.6,0.001]
[1757849194017,3.9366,4639.7,4639.6,0.001]
[1757849194218,4.3841,4639.7,4639.6,0.001]
[1757849195202,3.638,4639.7,4639.6,0.001]
[1757849195407,3.638,4639.7,4639.6,0.2896]
[1757849195605,3.638,4639.7,4639.6,1.1984]
[1757849195925,3.638,4639.7,4639.6,1.31824]
[1757849197583,3.638,4639.7,4639.6,0.86924]
[1757849198611,3.9366,4639.7,4639.6,0.001]
[1757849199516,3.638,4639.7,4639.6,0.001]
[1757849199888,3.9366,4639.7,4639.6,0.001]
[1757849200986,2.1138,4639.9,4639.6,0.2896]
[1757849201313,3.641,4639.8,4639.6,1.1984]
[1757849201512,6.641,4639.8,4639.7,0.11984]
[1757849201715,6.641,4639.8,4639.6,0.001]
[1757849202124,3.0,4639.8,4639.6,0.001]
[1757849202333,3.642,4639.7,4639.6,0.001]
[1757849202694,3.9406,4639.7,4639.6,0.001]
[1757849202893,3.642,4639.7,4639.6,0.001]
[1757849203432,3.642,4639.7,4639.6,0.2896]
[1757849203729,3.9406,4639.7,4639.6,0.001]
[1757849205413,4.06026103,4639.7,4639.6,0.001]
[1757849205593,3.76166103,4639.7,4639.6,0.001]
[1757849205795,3.76166103,4639.7,4639.6,0.2896]
[1757849206021,4.05406103,4639.7,4639.6,0.001]
[1757849207127,4.52836103,4639.7,4639.6,0.001]
[1757849207502,7.98708557,4639.7,4639.6,0.001]
[1757849207702,7.52836103,4639.7,4639.6,0.001]
[1757849207898,7.98708557,4639.7,4639.6,0.001]
[1757849208112,10.24232194,4639.7,4639.6,0.001]
[1757849208309,9.874107,4639.7,4639.6,0.001]
[1757849208526,11.166107,4639.7,4639.6,0.001]
[1757849208695,18.18615545,4639.7,4639.6,0.001]
[1757849209836,14.05275545,4639.7,4639.6,0.001]
[1757849210052,12.38238982,4639.7,4639.6,0.001]
[1757849210332,10.79798982,4639.7,4639.6,0.3011]
[1757849210541,14.43698982,4639.7,4639.6,0.7664]
[1757849210707,15.01164847,4639.7,4639.6,0.7664]
[1757849212404,15.77834847,4639.7,4639.6,0.001]
[1757849212605,17.644181,4639.7,4639.6,0.001]
[1757849212912,10.54092235,4639.7,4639.6,0.001]
[1757849213111,9.57522235,4639.7,4639.6,0.001]
[1757849213328,10.04952235,4639.7,4639.6,0.001]
[1757849213635,9.57722235,4639.7,4639.6,0.001]
[1757849214345,5.93822235,4639.7,4639.6,0.001]
[1757849214546,4.64706137,4639.7,4639.6,0.001]
[1757849214836,8.28506137,4639.7,4639.6,0.001]
[1757849215203,4.64706137,4639.7,4639.6,0.001]
[1757849215405,3.12170948,4639.7,4639.6,0.3011]
[1757849215706,6.639,4639.7,4639.6,1.1965]
[1757849215907,6.75870948,4639.7,4639.6,1.1965]
[1757849216110,0.002,4639.7,4639.6,1.31615]
[1757849216412,3.7492,4639.7,4639.6,1.31615]
[1757849218139,0.1092,4639.7,4639.6,1.31615]
[1757849218650,3.7472,4639.7,4639.6,1.31615]
[1757849219030,0.1092,4639.7,4639.6,1.31615]
[1757849219446,3.7472,4639.7,4639.6,1.31615]
[1757849219651,0.002,4639.7,4639.6,2.10815]
[1757849226386,0.002,4639.7,4639.6,2.21535]
[1757849227590,0.002,4639.7,4639.6,2.10815]
[1757849227794,0.002,4639.7,4639.6,2.75471218]
[1757849228092,0.002,4639.7,4639.6,5.75471218]
[1757849228454,0.002,4639.7,4639.6,35.75471218]
[1757849230256,0.002,4639.7,4639.6,37.67357246]
[1757849230455,0.002,4639.7,4639.6,35.75471218]
[1757849230950,0.002,4639.7,4639.6,38.59871218]
[1757849231394,0.002,4639.7,4639.6,39.39071218]
[1757849231769,0.002,4639.7,4639.6,4.96271218]
[1757849231974,0.002,4639.7,4639.6,8.59871218]
[1757849232170,0.002,4639.7,4639.6,9.39071218]
[1757849232573,0.002,4639.7,4639.6,39.39071218]
[1757849234677,0.002,4639.7,4639.6,35.75471218]
[1757849235069,0.002,4639.7,4639.6,39.39571218]
[1757849235804,0.002,4639.7,4639.6,39.39471218]
[1757849237398,0.002,4639.7,4639.6,38.85435]
[1757849237793,0.002,4639.7,4639.6,35.21535]
[1757849238101,0.002,4639.7,4639.6,38.85335]
[1757849240211,0.002,4639.7,4639.6,35.21535]
[1757849240390,0.002,4639.7,4639.6,38.85335]
[1757849240907,0.002,4639.7,4639.6,35.21535]
[1757849241106,0.002,4639.7,4639.6,38.85235]
[1757849242906,0.002,4639.7,4639.6,38.88925]
[1757849243106,0.002,4639.7,4639.6,8.88925]
[1757849243309,0.002,4639.7,4639.6,38.88925]
[1757849243485,0.002,4639.7,4639.6,30.22785]
[1757849243486,0.3144,4639.7,4639.6,30.22785]
[1757849243807,0.3144,4639.7,4639.6,0.12065]
[1757849243977,0.3144,4639.7,4639.6,6.75765]
[1757849244176,0.3144,4639.7,4639.6,3.75765]
[1757849244401,0.3144,4639.7,4639.6,4.54965]
[1757849245109,0.002,4639.7,4639.6,4.54965]
[1757849245292,0.002,4639.7,4639.6,4.85875]
[1757849245491,0.002,4639.7,4639.6,8.34765]
[1757849245704,0.002,4639.7,4639.6,8.81565]
[1757849246520,0.3144,4639.7,4639.6,7.54865]
[1757849246729,0.7547,4639.7,4639.6,7.54865]
[1757849246915,0.7547,4639.7,4639.6,7.55265]
[1757849247115,0.7547,4639.7,4639.6,3.91265]
[1757849247427,0.3144,4639.7,4639.6,7.55265]
[1757849247796,0.7547,4639.7,4639.6,7.55165]
[1757849248788,0.3144,4639.7,4639.6,7.55165]
[1757849250306,0.3144,4639.7,4639.6,3.91265]
[1757849250509,0.3144,4639.7,4639.6,7.55065]
[1757849251425,0.002,4639.7,4639.6,7.85975]
[1757849251619,0.002,4639.7,4639.6,8.81665]
[1757849251997,0.002,4639.7,4639.6,8.34865]
[1757849252203,0.002,4639.7,4639.6,8.81665]
[1757849252402,0.002,4639.7,4639.6,5.17865]
[1757849252603,0.002,4639.7,4639.6,4.22175]
[1757849252804,0.002,4639.7,4639.6,8.81665]
[1757849253206,0.3144,4639.7,4639.6,7.55065]
[1757849253411,0.002,4639.7,4639.6,7.55065]
[1757849253633,0.002,4639.7,4639.6,7.65785]
[1757849253800,0.3144,4639.7,4639.6,7.65785]
[1757849253995,0.002,4639.7,4639.6,7.96695]
[1757849254200,0.002,4639.7,4639.6,8.45585]
[1757849254506,0.002,4639.7,4639.6,7.96695]
[1757849254736,0.002,4639.7,4639.6,8.45585]
[1757849254939,0.002,4639.7,4639.6,8.92385]
[1757849255122,0.002,4639.7,4639.6,8.81665]
[1757849255436,0.002,4639.7,4639.6,8.92385]
[1757849257013,0.002,4639.7,4639.6,38.92385]
[1757849257226,0.00066207,4639.7,4639.6,39.13657284]
[1757849257425,0.00066207,4639.7,4639.6,38.92385]
[1757849259638,0.00066207,4639.7,4639.6,35.28585]
[1757849259825,0.00066207,4639.7,4639.6,34.81785]
[1757849260026,0.00066207,4639.7,4639.6,38.92085]
[1757849261142,0.00066207,4639.7,4639.6,38.81365]
[1757849261325,0.00066207,4639.7,4639.6,38.92085]
[1757849262425,0.00066207,4639.7,4639.6,42.43419337]
[1757849262758,0.002,4640.2,4639.7,3.792]
[1757849262925,0.002,4640.2,4639.9,3.792]
[1757849263115,0.002,4640.2,4640.1,4.2083]
[1757849263445,0.002,4640.2,4640.1,34.2083]
[1757849263646,0.002,4640.2,4640.1,35.1652]
[1757849263947,0.002,4640.2,4640.1,41.44265183]
[1757849264128,0.002,4640.2,4640.1,11.44265183]
[1757849264849,0.002,4640.2,4640.1,41.44165183]
[1757849265221,0.0006624,4640.2,4640.1,41.44165183]
[1757849266353,0.0006624,4640.2,4640.1,37.80365183]
[1757849266522,0.0006624,4640.2,4640.1,41.44165183]
[1757849267555,0.0006624,4640.2,4640.1,37.80365183]
[1757849267765,0.0006624,4640.2,4640.1,41.43965183]
[1757849268946,0.0006624,4640.2,4640.1,37.80365183]
[1757849269165,0.0006624,4640.2,4640.1,41.43865183]
[1757849270077,0.0006624,4640.2,4640.1,44.12827387]
[1757849270284,0.0006624,4640.2,4640.1,44.12727387]
[1757849271275,0.0006624,4640.2,4640.1,40.48375183]
[1757849272069,0.0006624,4640.2,4640.1,37.31345183]
[1757849272372,0.0006624,4640.2,4640.1,7.31345183]
[1757849272579,0.0006624,4640.2,4640.1,8.8103]
[1757849272875,0.0006624,4640.2,4640.1,4.7086]
[1757849273185,0.0006624,4640.2,4640.1,38.3446]
[1757849274458,0.0006624,4640.2,4640.1,34.7086]
[1757849274693,0.0006624,4640.2,4640.1,38.3446]
[1757849274898,0.0006624,4640.2,4640.1,40.48375183]
[1757849275495,0.0006624,4640.2,4640.1,36.84775183]
[1757849276083,0.0006624,4640.2,4640.1,40.48275183]
[1757849276404,0.0006624,4640.2,4640.1,40.94845183]
[1757849276632,0.0006624,4640.2,4640.1,41.38165183]
[1757849277219,0.0006624,4640.2,4640.1,41.41745183]
[1757849277511,0.002,4640.7,4640.1,41.41745183]
[1757849277713,0.002,4640.7,4640.5,3.792]
[1757849277876,0.002,4640.7,4640.6,37.5342]
[1757849278074,0.002,4640.7,4640.6,37.8323]
[1757849278313,0.002,4641.2,4640.7,3.792]
[1757849278609,0.002,4641.2,4641.1,5.72086985]
[1757849278813,0.002,4641.2,4641.1,39.99815222]
[1757849279016,0.002,4641.2,4641.1,41.06265222]
[1757849279174,0.002,4641.2,4641.1,11.06265222]
[1757849279778,0.002,4641.2,4641.1,41.06265222]
[1757849280104,0.002,4641.2,4641.1,40.10535222]
[1757849280986,0.002,4641.2,4641.1,39.80725222]
[1757849281293,0.7639,4641.2,4641.1,39.80625222]
[1757849281498,0.7639,4641.2,4641.1,37.87738237]
[1757849282784,0.7639,4641.2,4641.1,34.24338237]
[1757849283017,0.7639,4641.2,4641.1,37.87538237]
[1757849283319,1.2253,4641.2,4641.1,37.87538237]
[1757849283506,0.7639,4641.2,4641.1,37.87538237]
[1757849284222,1.2253,4641.2,4641.1,37.87538237]
[1757849284793,1.2253,4641.2,4641.1,34.24338237]
[1757849285100,0.7639,4641.2,4641.1,37.87438237]
[1757849285515,0.7639,4641.2,4641.1,7.87438237]
[1757849286226,1.2253,4641.2,4641.1,7.08138237]
[1757849286528,1.2253,4641.2,4641.1,7.87338237]
[1757849288110,0.7639,4641.2,4641.1,7.87338237]
[1757849290617,1.2253,4641.2,4641.1,7.87338237]
[1757849291398,1.2253,4641.2,4640.9,1.92886985]
[1757849291618,0.9312,4641.1,4641.0,3.634]
[1757849291943,1.2233,4641.1,4641.0,3.634]
[1757849292443,1.2233,4641.1,4641.0,3.633]
[1757849296035,1.2233,4641.1,4640.9,0.02154754]
[1757849296243,0.2921,4641.1,4641.0,3.632]
[1757849296942,0.7262,4641.1,4641.0,3.632]
[1757849297441,1.2228,4641.1,4641.0,3.632]
[1757849297832,0.2921,4641.1,4641.0,3.632]
[1757849298033,0.7262,4641.1,4641.0,3.632]
[1757849298639,0.002,4641.2,4641.1,0.792]
[1757849298843,0.4966,4641.1,4640.8,1.653]
[1757849299160,0.4966,4641.0,4640.9,6.631]
[1757849299364,1.2453,4641.0,4640.9,6.631]
[1757849299564,1.2453,4641.0,4640.9,3.0]
[1757849299744,1.2453,4641.0,4640.9,6.634]
[1757849300227,0.3146,4641.0,4640.9,3.0]
[1757849300432,0.7487,4641.0,4640.9,6.633]
[1757849300834,0.3146,4641.0,4640.9,6.633]
[1757849301261,0.7487,4641.0,4640.9,6.633]
[1757849303237,0.3146,4641.0,4640.9,6.633]
[1757849304061,1.2453,4641.0,4640.9,6.633]
[1757849304364,0.7487,4641.0,4640.9,6.633]
[1757849305057,0.7487,4641.0,4640.9,3.0]
[1757849305380,0.7487,4641.0,4640.9,6.63]
[1757849306439,1.2453,4641.0,4640.9,6.63]
[1757849307498,1.2453,4641.0,4640.9,3.63]
[1757849309396,1.2453,4641.0,4640.6,0.001]
[1757849309397,1.37023,4641.0,4640.6,0.001]
[1757849309564,1.37023,4641.0,4640.6,3.632]
[1757849309888,0.9307,4640.9,4640.6,3.632]
[1757849310088,0.3146,4640.7,4640.6,3.632]
[1757849310290,1.2453,4640.7,4640.6,3.632]
[1757849310968,1.2453,4640.7,4640.6,0.001]
[1757849311172,1.2453,4640.7,4640.6,3.631]
[1757849311462,1.36983,4640.7,4640.5,3.63]
[1757849311667,0.9307,4640.6,4640.3,3.63]
[1757849311872,0.3146,4640.4,4640.3,3.63]
[1757849312167,0.7487,4640.4,4640.3,3.63]
[1757849313257,0.3146,4640.4,4640.3,3.63]
[1757849313900,0.3146,4640.4,4640.2,0.02155079]
[1757849314057,0.3146,4640.4,4640.3,3.63]
[1757849314257,0.7487,4640.4,4640.3,3.63]
[1757849317488,0.7487,4640.4,4640.2,0.02155079]
[1757849317788,0.3146,4640.4,4640.3,3.628]
[1757849318195,0.7487,4640.4,4640.3,3.628]
[1757849320206,0.1072,4640.5,4640.3,3.9208]
[1757849320374,0.1072,4640.5,4640.4,0.02154986]
[1757849320565,0.1072,4640.5,4640.4,0.31734986]
[1757849321895,0.42703928,4640.9,4640.4,0.31734986]
[1757849322070,0.5413,4640.9,4640.5,3.625]
[1757849322395,0.5413,4640.9,4640.6,0.02154893]
[1757849322597,0.3146,4640.7,4640.6,0.02154893]
[1757849322975,0.7487,4640.7,4640.6,0.02154893]
[1757849323176,0.7487,4640.7,4640.5,3.625]
[1757849323587,0.3146,4640.7,4640.5,3.625]
[1757849324393,0.3146,4640.7,4640.1,0.1082]
[1757849324577,1.2453,4640.7,4640.2,3.624]
[1757849324777,0.1072,4640.5,4640.2,3.624]
[1757849324996,0.3146,4640.3,4640.2,3.624]
[1757849325211,0.7487,4640.3,4640.2,3.624]
[1757849325711,0.3146,4640.3,4640.2,3.624]
[1757849326009,0.1072,4640.5,4640.2,3.9139]
[1757849326166,0.1072,4640.5,4640.3,0.001]
[1757849327770,0.765,4640.4,4640.3,0.001]
[1757849327999,0.765,4640.4,4640.3,3.624]
[1757849328272,0.765,4640.4,4640.3,3.623]
[1757849328687,0.309,4640.4,4640.3,3.623]
[1757849329594,0.1072,4640.5,4640.3,3.623]
[1757849329894,0.1072,4640.5,4640.4,0.7782]
[1757849330104,0.1072,4640.5,4640.4,0.31144986]
[1757849330802,0.002,4640.7,4640.5,0.792]
[1757849331005,0.002,4640.7,4640.6,3.622]
[1757849331486,0.002,4640.7,4640.6,4.8628]
[1757849333208,0.002,4640.7,4640.6,6.4245]
[1757849333375,0.002,4640.7,4640.6,9.4245]
[1757849342248,0.002,4640.7,4640.6,9.3978]
[1757849345243,0.002,4640.7,4640.6,8.9619]
[1757849345637,0.002,4640.7,4640.6,5.3399]
[1757849345847,0.3052,4640.7,4640.6,8.1807]
[1757849346553,0.7414,4640.7,4640.6,7.5182]
[1757849346749,0.7414,4640.7,4640.6,3.8992]
[1757849347059,0.7414,4640.7,4640.6,7.5182]
[1757849347263,0.7414,4640.7,4640.6,6.619]
[1757849347450,0.7414,4640.7,4640.6,3.0]
[1757849347630,1.2388,4640.7,4640.6,6.619]
[1757849348463,1.36268,4640.7,4640.3,1.7622]
[1757849348664,1.36268,4640.7,4640.4,3.619]
[1757849348665,0.9336,4640.6,4640.4,3.619]
[1757849348833,1.2368,4640.5,4640.4,3.619]
[1757849349762,1.2368,4640.5,4640.3,3.62]
[1757849349958,0.8006,4640.5,4640.3,0.001]
[1757849350174,0.9336,4640.4,4640.3,3.62]
[1757849350354,1.2368,4640.4,4640.3,3.62]
[1757849350755,0.7394,4640.4,4640.3,3.62]
[1757849351567,0.1092,4640.7,4640.3,3.62]
[1757849351775,0.002,4640.7,4640.3,3.62]
[1757849352587,0.4382,4640.7,4640.3,3.62]
[1757849353587,0.3032,4640.4,4640.3,0.001]
[1757849353745,0.3032,4640.4,4640.3,3.62]
[1757849353941,0.3032,4640.4,4640.3,0.001]
[1757849354145,0.7394,4640.4,4640.3,0.001]
[1757849355778,1.2368,4640.4,4640.3,0.001]
[1757849356073,0.7394,4640.4,4640.3,0.001]
[1757849359872,0.1072,4640.6,4640.3,0.001]
[1757849360389,0.3103,4640.4,4640.3,0.001]
[1757849360879,0.1072,4640.6,4640.3,0.001]
[1757849361484,0.5626,4640.6,4640.3,0.001]
[1757849362499,0.3103,4640.4,4640.3,0.001]
[1757849363355,0.7657,4640.4,4640.3,0.001]
[1757849366251,1.2399,4640.4,4640.3,0.001]
[1757849366451,1.36429,4640.4,4640.3,0.001]
[1757849366914,0.89009,4640.4,4640.3,0.001]
[1757849368697,1.36429,4640.4,4640.3,0.001]